bitfinex-derivatives/quotes_ETHF0:USTF0_20251117
["timestamp","ask_amount","ask_price","bid_price","bid_amount"]
[1763393464704,1.91965958,3154.7,3154.1,3.2078]
[1763393465113,3.2078,3155.3,3154.5,3.2078]
[1763393465304,3.2078,3154.8,3153.9,3.2078]
[1763393465504,0.00313258,3154.8,3153.9,0.00320896]
[1763393465818,0.00313258,3154.8,3154.4,3.2078]
[1763393466709,3.2078,3154.5,3153.9,0.00320896]
[1763393466915,3.2078,3154.1,3153.9,8.96e-06]
[1763393467113,3.2078,3154.1,3152.6,3.2078]
[1763393467427,3.2078,3153.2,3152.6,3.2078]
[1763393468116,3.2078,3153.2,3152.6,3.21094577]
[1763393468317,3.21255639,3153.2,3152.6,3.21570216]
[1763393468710,3.21255639,3153.2,3152.6,0.00790216]
[1763393469117,3.2078,3152.8,3152.6,0.00790216]
[1763393469814,0.00475639,3153.2,3152.6,6.00790216]
[1763393470124,3.2078,3154.5,3153.6,0.6255]
[1763393470416,0.00313258,3154.8,3153.6,3.8333]
[1763393470624,0.00313258,3154.8,3154.0,3.2078]
[1763393470920,0.00475639,3154.7,3154.0,3.2078]
[1763393471919,3.2078,3154.1,3153.4,3.2078]
[1763393472214,0.00475639,3154.7,3152.6,0.00790216]
[1763393472215,3.2078,3153.5,3152.6,0.00790216]
[1763393472412,3.2078,3152.8,3152.6,0.00790216]
[1763393472608,0.00475639,3153.0,3152.6,0.00790216]
[1763393472815,3.2078,3152.8,3152.6,0.00790216]
[1763393473015,0.00475639,3153.0,3152.6,0.00790216]
[1763393473016,3.2078,3152.7,3152.6,0.00790216]
[1763393473217,0.00475639,3153.0,3152.6,3.21570216]
[1763393473417,3.21255639,3153.0,3152.6,0.00790216]
[1763393474218,6.0,3152.9,3151.0,3.2078]
[1763393474421,3.2078,3151.4,3151.0,3.2078]
[1763393474618,3.2078,3151.4,3150.3,40.8]
[1763393474819,3.2078,3150.6,3149.5,3.2078]
[1763393475018,3.2078,3150.2,3149.5,3.2078]
[1763393475213,3.2078,3151.9,3150.1,3.2078]
[1763393475418,3.2078,3151.9,3151.5,3.2078]
[1763393476017,0.3144,3152.5,3151.5,3.2078]
[1763393476216,0.3144,3152.5,3150.1,40.8]
[1763393476217,3.2078,3153.6,3152.1,3.2078]
[1763393476418,3.2078,3154.5,3153.2,3.2078]
[1763393476728,3.2078,3154.5,3153.5,3.2078]
[1763393476924,0.00475639,3154.2,3153.5,3.21255639]
[1763393477321,0.00767543,3154.2,3153.5,3.21654825]
[1763393477517,0.00767543,3154.2,3154.0,3.2078]
[1763393477719,3.21547543,3154.2,3153.5,0.00874825]
[1763393477916,0.00767543,3154.2,3153.8,3.2078]
[1763393478324,3.21547543,3154.2,3153.5,0.00874825]
[1763393478525,3.2078,3153.8,3153.5,0.00874825]
[1763393478733,4.065,3153.8,3152.9,3.2078]
[1763393479225,0.00767543,3154.2,3153.7,3.2078]
[1763393479436,0.00767543,3154.2,3154.0,3.2078]
[1763393479623,0.00767543,3154.2,3154.0,0.00225922]
[1763393479827,3.21547543,3154.2,3152.9,3.2078]
[1763393480026,3.2078,3153.3,3152.9,3.2078]
[1763393480332,3.2078,3153.3,3151.3,3.2078]
[1763393480629,3.2078,3152.5,3151.7,3.2078]
[1763393480827,0.00475639,3152.4,3151.8,0.00475639]
[1763393481033,3.2078,3152.1,3151.8,0.00475639]
[1763393481226,0.00475639,3152.4,3151.8,0.00475639]
[1763393481444,0.00475639,3152.4,3152.2,3.2078]
[1763393481824,0.00475639,3152.4,3151.8,3.21255639]
[1763393482733,0.00475639,3152.4,3151.8,0.00475639]
[1763393482928,3.2078,3152.1,3151.8,0.00475639]
[1763393483730,3.2078,3152.1,3150.2,11.429]
[1763393483731,3.2078,3152.1,3151.0,3.2078]
[1763393484836,3.2078,3151.6,3151.0,3.21165098]
[1763393485032,3.21086764,3151.6,3151.0,3.21165098]
[1763393485334,0.00306764,3151.6,3151.5,3.2078]
[1763393486335,0.00306764,3151.6,3151.2,0.8723]
[1763393486544,3.2078,3151.5,3150.3,40.8]
[1763393486838,0.00306764,3151.6,3149.5,3.2078]
[1763393486839,3.2078,3150.4,3149.5,3.2078]
[1763393487235,3.21255639,3150.3,3149.5,3.2078]
[1763393487439,3.2078,3149.6,3148.9,41.05915958]
[1763393487752,3.2078,3149.1,3148.9,0.00356816]
[1763393488040,3.21108537,3149.1,3148.9,0.00356816]
[1763393488244,3.21108537,3149.1,3147.6,4.0801]
[1763393488437,3.2078,3148.4,3147.6,4.0801]
[1763393488745,0.0047644,3148.7,3147.6,4.0801]
[1763393488746,3.2078,3148.0,3147.6,0.8723]
[1763393488951,3.2078,3148.4,3147.6,4.0801]
[1763393489142,3.2078,3148.4,3147.6,4.08306728]
[1763393489839,0.0047644,3148.7,3148.2,3.2078]
[1763393491350,3.2125644,3148.7,3147.6,4.08306728]
[1763393491550,3.2125644,3148.7,3148.0,3.2078]
[1763393491740,0.0047644,3148.7,3148.4,3.2078]
[1763393492139,0.0047644,3148.7,3148.4,9.2078]
[1763393492444,3.2078,3149.7,3148.4,3.2078]
[1763393492747,3.2078,3149.3,3148.4,3.2078]
[1763393492938,3.2078,3149.7,3148.4,3.2078]
[1763393493145,3.2078,3149.7,3148.9,3.2078]
[1763393493343,0.0047644,3149.6,3149.0,0.0047644]
[1763393493854,3.2078,3149.3,3149.0,0.0047644]
[1763393494047,0.0047644,3149.6,3149.0,0.0047644]
[1763393494048,3.2078,3149.5,3149.0,0.0047644]
[1763393494243,0.0047644,3149.6,3149.2,3.2078]
[1763393495557,3.2078,3150.9,3150.0,0.8723]
[1763393495842,3.2078,3150.9,3149.9,3.2078]
[1763393496048,3.2078,3150.5,3149.5,3.2078]
[1763393496237,3.2078,3150.5,3149.9,3.2078]
[1763393496438,0.00318258,3150.5,3149.9,3.21528127]
[1763393496636,3.21574698,3150.5,3149.9,3.21528127]
[1763393496837,0.00794698,3150.5,3149.9,3.21528127]
[1763393497039,0.00794698,3150.5,3150.3,3.2078]
[1763393497249,0.00794698,3150.5,3149.9,3.21528127]
[1763393497440,3.2078,3150.4,3149.9,3.21528127]
[1763393497643,3.05141948,3152.4,3150.4,0.8723]
[1763393497644,3.2078,3151.8,3150.4,0.8723]
[1763393497846,3.2078,3151.8,3151.0,3.2078]
[1763393498044,3.2078,3152.4,3151.6,3.2078]
[1763393498560,3.2078,3153.0,3152.0,3.2078]
[1763393498748,3.21156895,3153.0,3152.4,3.2078]
[1763393499059,0.00853335,3153.0,3152.8,3.2078]
[1763393500655,0.00853335,3153.0,3152.4,0.00805247]
[1763393500848,0.00853335,3153.0,3152.4,0.88035247]
[1763393501052,3.2078,3152.5,3151.7,3.2078]
[1763393502143,3.2078,3152.5,3151.8,0.0047644]
[1763393503954,3.2078,3152.9,3151.8,0.0047644]
[1763393504156,0.00853335,3153.0,3152.0,3.2078]
[1763393504551,3.2078,3152.5,3151.8,0.0047644]
[1763393505154,3.2078,3152.1,3151.8,0.0047644]
[1763393506759,3.2078,3152.7,3151.8,0.0047644]
[1763393507155,3.2078,3152.7,3152.1,3.2078]
[1763393507451,3.2078,3152.7,3151.8,0.0047644]
[1763393507756,0.00853335,3153.0,3151.8,0.0047644]
[1763393507757,3.2078,3152.3,3151.8,0.0047644]
[1763393509152,0.00853335,3153.0,3151.8,0.0047644]
[1763393509353,0.00853335,3153.0,3152.1,3.2078]
[1763393509553,0.00853335,3153.0,3152.4,3.2078]
[1763393509754,0.0346,3153.7,3151.8,0.0047644]
[1763393509755,0.0346,3153.7,3152.3,3.2078]
[1763393509959,0.0346,3153.7,3152.9,3.2078]
[1763393510161,3.2078,3153.3,3152.3,3.2078]
[1763393510467,3.2078,3152.5,3151.8,0.0047644]
[1763393510664,3.2078,3152.1,3150.9,3.2078]
[1763393510959,3.2078,3151.5,3150.9,3.2078]
[1763393511150,3.2078,3151.5,3150.4,0.8723]
[1763393511151,3.2078,3151.0,3150.4,3.2078]
[1763393511551,3.2078,3151.8,3150.9,3.2078]
[1763393511763,0.00824178,3151.0,3150.9,3.2078]
[1763393512558,0.00824178,3151.0,3150.9,3.19943665]
[1763393512763,6.00824178,3151.0,3150.4,0.00730866]
[1763393512964,3.2078,3150.8,3150.4,0.00730866]
[1763393513667,9.2078,3150.8,3149.5,3.4692422]
[1763393513862,3.2078,3150.3,3149.5,3.2078]
[1763393514166,3.2078,3149.8,3149.1,3.2078]
[1763393514465,3.2078,3149.4,3149.0,3.2078]
[1763393514666,3.2078,3149.4,3149.0,0.00376635]
[1763393516367,3.2078,3149.4,3148.3,3.2078]
[1763393516566,3.2078,3148.8,3148.3,3.2078]
[1763393516765,3.2078,3148.8,3147.7,3.2078]
[1763393517460,3.2078,3148.8,3147.7,3.21091159]
[1763393518164,3.2078,3148.6,3147.7,0.00311159]
[1763393518369,3.2117456,3148.6,3147.7,0.00311159]
[1763393518566,0.0047644,3149.5,3147.9,3.2078]
[1763393518567,1.2114,3149.4,3147.9,3.2078]
[1763393518869,2.09635677,3152.0,3149.7,3.2078]
[1763393519162,0.7484,3152.4,3151.6,3.2078]
[1763393519362,0.7484,3151.2,3150.7,3.2078]
[1763393519568,0.7484,3151.2,3150.7,3.21161733]
[1763393519569,0.75118131,3151.2,3150.7,3.21161733]
[1763393520364,0.75118131,3151.2,3149.2,1.68754747]
[1763393520365,3.2078,3151.0,3149.9,3.2078]
[1763393521071,0.7484,3149.9,3149.6,3.2078]
[1763393521368,0.75118131,3151.2,3149.7,4.946]
[1763393521671,0.74259959,3151.2,3150.4,3.2078]
[1763393522070,3.95039959,3151.2,3150.4,3.2078]
[1763393522277,0.7484,3149.9,3149.6,3.21119322]
[1763393522967,3.2078,3149.8,3149.2,3.2078]
[1763393523163,3.2078,3149.8,3148.3,0.84501718]
[1763393523164,3.2125644,3149.8,3148.7,3.2078]
[1763393523667,0.7484,3148.8,3148.1,3.2078]
[1763393524060,3.2078,3148.2,3146.8,3.2078]
[1763393524258,6.75085821,3148.8,3146.6,3.2078]
[1763393524259,3.2078,3147.1,3146.6,3.2078]
[1763393524471,3.2078,3147.5,3146.6,3.2078]
[1763393524667,3.2078,3147.1,3146.6,3.2078]
[1763393524972,3.2078,3147.5,3146.6,3.2078]
[1763393525171,3.2078,3147.5,3146.6,3.21081152]
[1763393525563,3.2078,3147.1,3146.6,3.21081152]
[1763393525868,3.2078,3147.0,3145.3,0.84501718]
[1763393526065,3.2078,3145.4,3144.7,3.2078]
[1763393526368,3.2078,3145.3,3144.8,3.2078]
[1763393526567,0.0047644,3145.4,3144.8,3.2078]
[1763393526775,0.0047644,3145.4,3144.3,41.06127307]
[1763393526776,0.0047644,3145.4,3144.2,3.2078]
[1763393527078,3.2078,3145.2,3144.2,3.21166681]
[1763393527259,3.2078,3144.8,3144.2,3.21166681]
[1763393527459,3.2078,3144.3,3144.2,0.00386681]
[1763393528164,3.2078,3143.9,3141.6,3.2078]
[1763393528364,3.2078,3142.1,3141.2,3.2078]
[1763393528670,3.2078,3142.6,3141.7,3.2078]
[1763393528875,0.7484,3142.1,3140.8,0.25835594]
[1763393529178,3.21257205,3141.8,3140.8,0.26439188]
[1763393529378,3.2078,3142.7,3141.6,3.2078]
[1763393529676,3.2078,3143.1,3141.5,3.2078]
[1763393529875,3.2078,3142.3,3141.1,3.2078]
[1763393530075,3.2078,3141.9,3141.1,3.2078]
[1763393530267,3.2078,3142.5,3141.2,0.00477205]
[1763393530469,0.25296704,3146.9,3141.2,0.00477205]
[1763393530470,3.9562,3144.7,3142.3,3.2078]
[1763393530669,3.9562,3144.7,3143.8,3.2078]
[1763393530868,1.64,3146.2,3143.4,3.2078]
[1763393530869,3.2078,3144.3,3143.4,3.2078]
[1763393531176,3.2078,3143.5,3142.5,3.2078]
[1763393531473,0.00477205,3143.3,3142.7,0.00477205]
[1763393531873,3.2078,3144.1,3143.1,3.2078]
[1763393532081,3.2078,3144.0,3143.1,3.2078]
[1763393532375,0.7484,3144.4,3142.7,0.00477205]
[1763393532376,3.2078,3144.1,3142.7,0.00477205]
[1763393532577,3.2078,3143.8,3143.2,3.2078]
[1763393533075,3.2078,3143.5,3142.7,0.00477205]
[1763393533277,3.2078,3143.3,3142.7,0.00477205]
[1763393533472,3.2078,3143.5,3142.7,0.00477205]
[1763393533771,0.00879325,3143.8,3142.7,3.18557205]
[1763393533969,3.2078,3143.5,3142.7,3.21257205]
[1763393534170,3.2078,3143.1,3142.7,0.00477205]
[1763393534575,3.2078,3143.5,3142.7,3.21257205]
[1763393534774,3.2078,3143.2,3142.7,0.00477205]
[1763393534984,3.2078,3143.7,3142.7,3.21257205]
[1763393535472,3.2078,3143.7,3142.7,6.39337205]
[1763393535784,3.2078,3143.7,3142.8,3.2078]
[1763393536074,3.2078,3143.3,3142.7,0.00477205]
[1763393537079,3.2078,3143.7,3143.0,3.2078]
[1763393537675,3.2078,3143.7,3142.9,3.2078]
[1763393538177,0.00879325,3143.8,3143.5,3.2078]
[1763393538781,0.00879325,3143.8,3143.6,40.8]
[1763393538975,0.00879325,3143.8,3143.1,3.2078]
[1763393539177,0.00879325,3143.8,3142.7,0.00477205]
[1763393539178,0.00879325,3143.8,3143.6,3.2078]
[1763393539973,0.00879325,3143.8,3142.8,40.8]
[1763393540174,0.00879325,3143.8,3142.7,0.00477205]
[1763393540175,3.2078,3143.2,3142.7,0.00477205]
[1763393540381,0.00879325,3143.8,3142.7,0.00477205]
[1763393540578,0.00879325,3143.8,3143.1,3.2078]
[1763393541382,3.2078,3143.5,3142.7,3.21257205]
[1763393542281,0.00879325,3143.8,3142.7,3.21257205]
[1763393542581,3.2078,3143.5,3142.7,3.21257205]
[1763393542781,3.2078,3143.0,3142.7,0.00477205]
[1763393542981,3.2078,3143.0,3141.0,3.2078]
[1763393543187,3.2078,3141.7,3141.0,3.2078]
[1763393543981,0.00477205,3141.7,3141.0,3.21653546]
[1763393544192,0.00477205,3141.7,3141.4,3.2078]
[1763393544383,0.00477205,3141.7,3141.0,0.00873546]
[1763393544384,3.2078,3141.6,3141.0,0.00873546]
[1763393544585,3.2078,3141.5,3141.0,0.00873546]
[1763393544790,0.00400267,3141.6,3141.0,0.00873546]
[1763393545095,3.21180267,3141.6,3141.0,0.00873546]
[1763393545300,3.2078,3141.4,3141.0,0.00873546]
[1763393545790,3.2078,3141.4,3140.3,3.2078]
[1763393546191,0.00400267,3141.6,3139.6,44.0078]
[1763393546192,3.2078,3140.4,3139.6,44.0078]
[1763393546492,3.2078,3140.0,3139.6,3.2078]
[1763393546685,3.2078,3140.0,3139.0,3.2078]
[1763393546891,3.2078,3139.6,3139.2,0.00477205]
[1763393547084,3.2078,3139.6,3139.0,3.21080768]
[1763393547085,3.2078,3139.6,3139.0,0.00300768]
[1763393547388,3.2078,3139.1,3138.4,3.2078]
[1763393547885,3.2078,3139.7,3138.4,3.2078]
[1763393548086,3.2078,3139.7,3138.1,40.8]
[1763393548087,3.2078,3139.3,3138.8,3.2078]
[1763393548279,0.00367424,3139.3,3138.8,3.21022444]
[1763393548682,3.2078,3139.7,3139.2,3.2078]
[1763393549681,3.21076876,3139.7,3139.2,3.2078]
[1763393549891,3.21076876,3139.7,3138.8,3.21022444]
[1763393550987,3.2078,3139.0,3138.8,0.00242444]
[1763393551184,3.2078,3140.3,3139.2,0.7762]
[1763393551387,3.2078,3142.2,3140.2,3.2078]
[1763393551587,3.2078,3142.2,3141.5,3.2078]
[1763393551791,3.2078,3142.2,3141.1,3.2078]
[1763393552092,3.2078,3142.2,3141.2,3.2078]
[1763393552298,0.81,3141.6,3141.4,0.00477205]
[1763393552480,3.2078,3141.5,3141.4,0.00477205]
[1763393553085,3.21257205,3142.0,3141.4,0.00477205]
[1763393553294,0.00477205,3142.0,3141.4,0.00477205]
[1763393553894,0.81,3141.6,3141.4,0.00477205]
[1763393554194,0.00477205,3142.0,3141.4,0.00477205]
[1763393554390,0.00341495,3142.2,3141.7,3.2078]
[1763393554692,3.2078,3142.5,3142.1,3.2078]
[1763393555288,3.2078,3143.1,3142.2,3.1816]
[1763393555489,3.2078,3142.3,3141.7,3.2078]
[1763393555689,4.0178,3142.8,3141.7,3.2078]
[1763393556395,4.0178,3142.8,3142.1,3.2078]
[1763393556595,3.2078,3142.4,3141.4,0.00477205]
[1763393557095,3.2078,3142.4,3141.6,3.2078]
[1763393557289,3.2078,3142.5,3141.4,0.00477205]
[1763393557594,3.2078,3142.1,3141.4,0.00477205]
[1763393557892,0.81,3141.6,3140.6,3.2078]
[1763393558099,3.2078,3141.0,3140.0,3.2078]
[1763393558595,3.2078,3141.4,3140.5,3.2078]
[1763393559183,3.2078,3141.0,3140.5,3.2078]
[1763393559388,3.2078,3141.0,3140.5,3.2116252]
[1763393559789,0.00477205,3141.1,3140.5,3.2116252]
[1763393560092,3.2078,3140.9,3140.5,3.2116252]
[1763393560397,3.2078,3140.9,3140.5,2.52e-05]
[1763393560398,0.00402698,3140.9,3140.5,2.52e-05]
[1763393560599,0.00402698,3140.9,3140.6,3.2078]
[1763393561798,0.00477205,3141.1,3140.6,3.2078]
[1763393561994,0.00477205,3141.1,3141.0,3.2078]
[1763393562898,0.00720811,3141.1,3141.0,3.2078]
[1763393564395,0.00720811,3141.1,3140.4,0.00477205]
[1763393564597,3.2078,3140.8,3140.4,0.00477205]
[1763393564798,3.2078,3140.8,3139.7,3.2078]
[1763393564996,6.00720811,3141.1,3138.7,1.68754747]
[1763393564997,3.2078,3139.9,3139.2,3.2078]
[1763393565301,3.2078,3139.5,3139.2,0.00288699]
[1763393565498,3.2078,3139.9,3139.2,0.00288699]
[1763393566101,3.2078,3139.5,3139.2,0.00288699]
[1763393566897,3.2078,3139.5,3137.5,1.12503164]
[1763393566898,6.0,3139.4,3137.6,3.2078]
[1763393567197,3.2078,3138.6,3137.8,3.2078]
[1763393567392,3.2078,3140.1,3138.3,3.2078]
[1763393567591,0.81,3140.4,3138.3,3.2078]
[1763393567592,3.2078,3139.4,3138.3,3.2078]
[1763393567903,3.21057158,3139.4,3138.3,3.21112623]
[1763393568504,0.0047798,3139.2,3138.5,0.0047798]
[1763393569198,3.2078,3138.8,3138.5,0.0047798]
[1763393569698,4.0225798,3139.2,3138.5,0.0047798]
[1763393569902,3.2078,3138.8,3138.5,0.0047798]
[1763393570301,3.2125798,3139.2,3138.5,0.0047798]
[1763393570600,3.2078,3138.6,3138.5,0.0047798]
[1763393571302,3.2078,3138.6,3137.0,1.68754747]
[1763393571501,3.2078,3138.1,3136.7,0.8430592]
[1763393571696,0.8877,3138.3,3136.5,4.33283164]
[1763393571697,3.2078,3137.7,3136.9,3.2078]
[1763393572209,3.2078,3138.1,3136.9,3.2078]
[1763393572399,0.0047798,3137.8,3136.9,3.21128708]
[1763393572702,3.2078,3138.1,3137.5,3.2078]
[1763393572901,3.2078,3138.1,3136.9,3.21128708]
[1763393573097,3.2078,3137.6,3136.9,3.21128708]
[1763393573698,3.2125798,3137.6,3136.9,3.21606688]
[1763393574608,0.0047798,3137.6,3136.9,3.21606688]
[1763393574811,0.0047798,3137.6,3137.3,3.2078]
[1763393575006,3.2078,3138.2,3136.9,0.00826688]
[1763393575007,3.2078,3138.2,3137.0,3.2078]
[1763393575202,3.2078,3138.2,3136.9,40.80826688]
[1763393575404,3.2078,3137.8,3136.9,0.00826688]
[1763393575805,3.2078,3138.6,3137.7,3.2078]
[1763393576005,0.0047798,3138.5,3137.1,3.2078]
[1763393576215,0.0047798,3138.5,3137.2,3.2078]
[1763393576509,0.0047798,3138.5,3137.2,0.8275]
[1763393576710,0.81277158,3139.4,3137.2,0.8275]
[1763393576711,3.2078,3139.0,3137.8,3.2078]
[1763393576909,3.2078,3139.0,3138.3,3.2078]
[1763393577716,3.2078,3137.5,3136.6,1.12503164]
[1763393577913,0.0047798,3139.0,3136.3,0.26334963]
[1763393577914,3.2078,3137.0,3136.3,0.26334963]
[1763393578215,3.2078,3137.0,3135.7,1.12503164]
[1763393578216,3.2078,3136.8,3136.6,0.51694]
[1763393578515,3.2078,3136.8,3136.6,0.51693]
[1763393578720,3.2078,3137.7,3136.1,3.2078]
[1763393578910,0.0047798,3137.2,3137.0,0.51687]
[1763393579110,9.8e-06,3137.2,3137.0,0.51687]
[1763393579309,3.21117108,3137.7,3137.2,0.8275]
[1763393580213,3.2078,3137.3,3137.2,0.8275]
[1763393580408,3.2078,3137.3,3136.6,0.0047798]
[1763393580613,3.2078,3136.8,3136.6,0.0047798]
[1763393581007,6.0,3136.7,3134.4,4.20131717]
[1763393581206,0.606,3137.2,3134.4,4.20131717]
[1763393581207,3.2078,3134.8,3134.4,3.9445]
[1763393581407,3.2078,3134.8,3134.0,3.2078]
[1763393581716,3.2078,3134.2,3133.7,0.03191167]
[1763393582016,3.2078,3133.8,3133.7,0.03508113]
[1763393583016,3.2078,3133.8,3132.8,0.8275]
[1763393583213,3.2078,3133.4,3132.8,0.8275]
[1763393584116,3.2078,3132.9,3132.8,0.00748087]
[1763393584818,3.2078,3132.9,3130.6,4.0353]
[1763393584819,9.2078,3132.9,3130.6,4.0353]
[1763393585011,0.00365418,3134.2,3130.6,4.0353]
[1763393585012,3.2078,3132.0,3130.6,4.0353]
[1763393585216,4.667,3134.1,3130.6,4.0353]
[1763393585217,3.2078,3131.6,3130.7,40.8]
[1763393585521,3.2078,3131.2,3130.6,4.0353]
[1763393585718,0.00478759,3131.2,3130.7,0.00313686]
[1763393586114,3.2078,3131.1,3130.7,0.00313686]
[1763393586324,3.2078,3131.1,3129.3,3.2078]
[1763393586526,3.2078,3130.0,3128.9,3.2078]
[1763393586822,3.2078,3130.0,3128.4,0.8275]
[1763393587016,3.2078,3129.0,3128.4,0.8275]
[1763393587324,3.21054616,3129.0,3128.7,0.03493672]
[1763393587712,3.21054616,3129.0,3127.6,3.2078]
[1763393587908,3.21054616,3129.0,3128.0,3.2078]
[1763393588116,3.2078,3128.5,3127.6,3.2078]
[1763393588312,3.2078,3128.9,3128.0,3.2078]
[1763393588714,3.2078,3128.9,3128.0,3.21093739]
[1763393588917,3.2078,3128.2,3126.1,3.2078]
[1763393589125,0.00274616,3129.0,3126.3,3.2078]
[1763393589126,0.00479531,3127.5,3126.3,3.2078]
[1763393589422,0.00479531,3127.5,3127.2,3.2078]
[1763393589622,0.00479531,3127.5,3126.8,3.2078]
[1763393589824,3.2078,3128.5,3127.2,3.2078]
[1763393590018,3.2078,3128.5,3128.1,3.2078]
[1763393590216,3.2078,3128.5,3127.2,3.21169557]
[1763393590425,3.2078,3128.5,3124.8,0.8275]
[1763393590426,3.2078,3127.3,3126.0,4.0353]
[1763393590720,3.2078,3127.3,3126.0,4.28852101]
[1763393590923,3.2078,3127.9,3126.9,3.2078]
[1763393591230,0.00274616,3129.0,3126.3,0.00479531]
[1763393591231,3.2078,3128.7,3127.8,4.0353]
[1763393591428,0.00274616,3129.0,3128.3,3.2078]
[1763393591724,4.616e-05,3129.0,3128.8,3.2078]
[1763393592123,3.2078,3129.9,3129.1,0.8275]
[1763393592320,3.2078,3131.3,3129.8,3.2078]
[1763393592518,2.39252,3130.3,3130.1,3.2078]
[1763393592918,2.39252,3130.3,3129.2,3.2078]
[1763393593119,3.2078,3129.9,3129.4,0.00479531]
[1763393593317,0.00479531,3130.1,3129.4,0.00479531]
[1763393593521,0.00479531,3130.1,3129.7,3.2078]
[1763393593720,2.39506187,3130.3,3129.7,3.2078]
[1763393593721,3.2078,3131.1,3129.7,3.2078]
[1763393593931,0.6135,3133.0,3130.7,3.2078]
[1763393593932,3.2078,3131.7,3130.7,3.2078]
[1763393594224,3.2078,3131.9,3130.6,3.2078]
[1763393594422,4.0955,3131.7,3130.6,3.2078]
[1763393594719,0.6135,3133.0,3131.0,3.2078]
[1763393594720,0.00479531,3131.5,3131.0,3.2078]
[1763393594921,3.2078,3132.6,3130.8,0.00479531]
[1763393594922,3.2078,3132.6,3131.4,3.2078]
[1763393595121,3.2078,3132.6,3130.8,0.00479531]
[1763393595122,3.2078,3132.6,3131.9,3.2078]
[1763393595323,0.51763,3132.5,3131.9,3.2078]
[1763393595622,0.6135,3133.0,3131.9,3.2078]
[1763393596126,0.00479531,3132.8,3132.5,3.2078]
[1763393596627,0.00479531,3132.8,3132.3,0.00479531]
[1763393596820,3.21259531,3132.8,3132.3,0.00479531]
[1763393597022,0.51761,3132.6,3132.3,0.00479531]
[1763393597218,0.00479531,3132.8,3132.3,0.00479531]
[1763393597424,0.00479531,3132.8,3132.5,3.2078]
[1763393598519,0.8877,3134.3,3132.6,3.192]
[1763393598737,0.8877,3134.3,3132.5,3.2078]
[1763393598738,3.2078,3134.2,3133.2,3.2078]
[1763393599019,0.5175,3133.3,3132.9,3.2078]
[1763393599220,3.2078,3134.0,3132.9,3.2078]
[1763393599420,3.2078,3134.0,3132.3,0.00479531]
[1763393599421,3.2078,3133.8,3132.5,3.2078]
[1763393599626,4.0955,3133.0,3132.3,0.00479531]
[1763393599922,0.51763,3132.5,3132.3,0.00479531]
[1763393600522,3.2078,3132.6,3132.3,0.00479531]
[1763393600926,4.0955,3133.0,3132.3,0.00479531]
[1763393601129,4.61304,3133.0,3132.3,0.00479531]
[1763393601331,0.51762,3132.5,3132.3,0.00479531]
[1763393601827,0.8877,3133.0,3132.3,3.21259531]
[1763393601828,3.2078,3133.0,3132.3,3.21259531]
[1763393602023,3.21083997,3133.5,3132.9,3.2078]
[1763393602222,3.2078,3133.1,3131.9,0.00397208]
[1763393602437,0.51789,3130.9,3130.7,3.2078]
[1763393602725,0.51808,3129.7,3129.6,3.2078]
[1763393603129,3.2078,3130.0,3128.7,3.2078]
[1763393603330,3.2078,3129.6,3129.0,0.00478712]
[1763393603627,0.0038246,3130.0,3129.1,6.403]
[1763393603827,3.2078,3130.4,3129.5,3.2078]
[1763393604035,3.2078,3130.3,3129.0,3.21258712]
[1763393604330,3.2078,3130.3,3129.5,3.2078]
[1763393604527,1.92642943,3130.3,3129.9,3.2078]
[1763393604729,0.9223,3132.0,3129.9,3.2078]
[1763393604730,3.2078,3131.1,3130.0,6.0]
[1763393604928,3.2078,3131.1,3130.6,3.2078]
[1763393605133,11.08039579,3135.4,3130.6,44.0078]
[1763393605134,3.2078,3131.6,3130.6,44.0078]
[1763393605328,3.2078,3132.0,3130.3,3.2078]
[1763393605528,3.2078,3132.0,3131.1,3.2078]
[1763393605733,3.21092131,3132.0,3131.5,3.2078]
[1763393605929,0.51766,3132.3,3131.5,3.2078]
[1763393606131,3.2078,3132.4,3131.2,0.00478712]
[1763393606521,0.51774,3131.8,3131.2,0.00478712]
[1763393606727,3.2078,3132.3,3131.2,0.00478712]
[1763393606728,0.51769,3132.1,3131.2,0.00478712]
[1763393606931,0.00351228,3132.1,3131.5,3.2078]
[1763393607527,3.2078,3132.8,3132.0,3.2078]
[1763393607730,2.09635677,3136.5,3132.0,3.2078]
[1763393607731,3.2078,3133.2,3132.0,4.2391]
[1763393607928,3.2078,3133.2,3132.4,3.2078]
[1763393608332,0.51753,3133.1,3132.4,3.2078]
[1763393608635,0.51753,3133.0,3132.4,3.2078]
[1763393608831,0.00383155,3133.1,3132.4,3.2078]
[1763393609228,0.51761,3132.6,3132.4,3.2078]
[1763393609427,0.00383155,3133.1,3132.2,3.2078]
[1763393609629,0.00383155,3133.1,3132.6,3.2078]
[1763393609944,0.51757,3132.8,3132.6,3.2078]
[1763393610229,0.00383155,3133.1,3132.6,3.2014]
[1763393610435,0.51757,3132.8,3132.6,3.2014]
[1763393610628,0.51762,3132.6,3132.1,3.2078]
[1763393610828,0.00383155,3133.1,3132.1,3.2078]
[1763393611031,0.51759,3132.7,3132.1,3.2078]
[1763393611226,0.5176,3132.6,3132.1,3.2078]
[1763393611434,0.00383155,3133.1,3132.1,3.2078]
[1763393611737,0.00383155,3133.1,3132.2,3.2078]
[1763393611935,0.51764,3132.4,3132.2,3.2078]
[1763393612336,0.00383155,3133.1,3132.2,3.2078]
[1763393612523,0.51764,3132.4,3132.2,3.2078]
[1763393613132,0.51775,3131.7,3131.6,3.2078]
[1763393613534,0.00383155,3133.1,3131.2,0.00478712]
[1763393613535,0.51782,3131.3,3131.2,0.00478712]
[1763393613761,0.51781,3131.4,3131.2,0.00478712]
[1763393614044,0.51781,3131.4,3130.7,3.2078]
[1763393614045,0.5179,3130.8,3130.7,3.2078]
[1763393614244,0.51799,3130.3,3130.1,3.2078]
[1763393614841,0.5181,3129.6,3129.5,3.2078]
[1763393615050,0.51822,3128.9,3128.7,3.2078]
[1763393615340,3.2078,3128.9,3128.5,0.00478712]
[1763393615536,3.2078,3129.5,3128.5,0.00771659]